Workbook

Sheet Estimate
A1: BREAKOUT OF CONSTRUCTION COSTS BY WORK TYPE | C1: DATE: | F1: 2011-11-30
A2: PROJECT: Quivira Road Widening (99th Street to 105th Street) (TH-0948)
A3: KDOT PROJECT NO. 46 N-0474-01
A4: Item No. | B4: Item | C4: Unit | D4: Quantity | F4: Total | G4: Unit Price | H4: Participating | I4: Non- | J4: Total
D5: Part | E5: Non-Part | F5: Quantity | I5: Participating
A6: 1 | B6: Maintenance Bond | C6: Lump Sum | E6: 1 | F6: =SUM(D6:E6) -> 1 | G6: $8,000.00 | H6: =D6*G6 -> $0.00 | I6: =E6*G6 -> $8,000.00 | J6: =H6+I6 -> $8,000.00
A7: 2 | B7: Contractor Construction Staking | C7: Lump Sum | D7: 1 | F7: =SUM(D7:E7) -> 1 | G7: $25,000.00 | H7: =D7*G7 -> $25,000.00 | I7: =E7*G7 -> $0.00 | J7: =H7+I7 -> $25,000.00
A8: 3 | B8: Clearing and Grubbing | C8: Lump Sum | D8: 1 | F8: 1 | G8: $50,000.00 | H8: =D8*G8 -> $50,000.00 | I8: $0.00 | J8: $50,000.00
A9: 4 | B9: Removal of Existing Structures | C9: Lump Sum | D9: 1 | F9: 1 | G9: $60,000.00 | H9: =D9*G9 -> $60,000.00 | I9: $0.00 | J9: $60,000.00
A10: 5 | B10: Force Account (Set) | C10: Lump Sum | E10: 1 | F10: 1 | G10: $200,000.00 | H10: =D10*G10 -> $0.00 | I10: $200,000.00 | J10: $200,000.00
A12: 6 | B12: Unclassified Excavation | C12: Cu. Yd. | D12: 25,121 | F12: 25,121 | G12: $17.75 | H12: =D12*G12 -> $445,897.75 | I12: $0.00 | J12: $445,897.75
A13: 7 | B13: Compaction of Earthwork (All Types) | C13: Cu. Yd. | D13: 287 | F13: 287 | G13: $12.55 | H13: $3,601.85 | I13: $0.00 | J13: $3,601.85
A14: 8 | B14: Excavation (Unsuitable) | C14: Cu. Yd. | D14: 500 | F14: 500 | G14: $15.75 | H14: $7,875.00 | I14: $0.00 | J14: $7,875.00
A15: 9 | B15: Excavation (Unstable) | C15: Cu. Yd. | D15: 500 | F15: 500 | G15: $15.75 | H15: $7,875.00 | I15: $0.00 | J15: $7,875.00
A16: 10 | B16: Topsoil | C16: Cu. Yd. | D16: 2,545 | F16: 2,545 | G16: $13.75 | H16: $34,993.75 | I16: $0.00 | J16: $34,993.75
A18: 11 | B18: Asphaltic Concrete Surface Course | C18: Ton | D18: 4,642 | F18: 4,642 | G18: $67.50 | H18: $313,335.00 | I18: =E18*G18 -> $0.00 | J18: $313,335.00
A19: 12 | B19: Asphaltic Concrete Intermediate Course | C19: Ton | D19: 22,623 | F19: 22,623 | G19: $67.50 | H19: $1,527,052.50 | I19: $0.00 | J19: $1,527,052.50
A21: 13 | B21: Temporary Surfacing Material (Commercial Grade Asphaltic Concrete) | C21: Ton | D21: 2,630 | F21: 2,630 | G21: $69.00 | H21: $181,470.00 | I21: $0.00 | J21: $181,470.00
A22: 14 | B22: Temporary Surfacing Material (Commercial Grade Asphaltic Concrete)(Sidewalk) | C22: Ton | D22: 220 | F22: 220 | G22: $105.00 | H22: $23,100.00 | I22: $0.00 | J22: $23,100.00
A23: 15 | B23: Temporary Surfacing Material (Type AB-3) | C23: Ton | D23: 100 | F23: 100 | G23: $18.50 | H23: $1,850.00 | I23: $0.00 | J23: $1,850.00
A25: 16 | B25: Fly Ash | C25: Ton | D25: 2,319 | F25: 2,319 | G25: $38.00 | H25: $88,122.00 | I25: $0.00 | J25: $88,122.00
A26: 17 | B26: Manipulation For Fly Ash Treated Subgrade (8") | C26: Sq. Yd. | D26: 41,832 | F26: 41,832 | G26: $3.00 | H26: $125,496.00 | I26: $0.00 | J26: $125,496.00
A27: 18 | B27: Aggregate Base Course (OP Special) | C27: Sq. Yd. | D27: 1,915 | F27: 1,915 | G27: $8.25 | H27: $15,798.75 | I27: $0.00 | J27: $15,798.75
A28: 19 | B28: Milling (Total Width Cut) (2") | C28: Sq. Yd. | D28: 992 | F28: 992 | G28: $4.50 | H28: $4,464.00 | I28: $0.00 | J28: $4,464.00
A29: 20 | B29: Street Sweeping | C29: Lump Sum | D29: 1 | F29: 1 | G29: $4,000.00 | H29: $4,000.00 | I29: $0.00 | J29: $4,000.00
A30: 21 | B30: Street Washing | C30: Lane Mile | D30: 5.5 | F30: 6 | G30: $1,200.00 | H30: $6,600.00 | I30: $0.00 | J30: $6,600.00
A31: 22 | B31: Pothole Repair | C31: Sq. Ft. | D31: 250.0 | F31: 250 | G31: $28.00 | H31: $7,000.00 | I31: $0.00 | J31: $7,000.00
A32: 23 | B32: Special Cleaning of Milled Surfaces | C32: Lump Sum | D32: 1 | F32: 1 | G32: $850.00 | H32: $850.00 | I32: $0.00 | J32: $850.00
A34: 24 | B34: Curb and Gutter, Combined (Type A) | C34: Lin. Ft. | D34: 653 | F34: 653 | G34: $18.00 | H34: $11,754.00 | I34: $0.00 | J34: $11,754.00
A35: 25 | B35: Curb and Gutter, Combined (Type B) | C35: Lin. Ft. | D35: 7,746 | F35: 7,746 | G35: $15.15 | H35: $117,351.90 | I35: $0.00 | J35: $117,351.90
A36: 26 | B36: Curb and Gutter, Combined (Type C) | C36: Lin. Ft. | D36: 30 | F36: 30 | G36: $15.15 | H36: $454.50 | I36: $0.00 | J36: $454.50
A37: 27 | B37: Curb and Gutter, Combined (Type E) | C37: Lin. Ft. | D37: 6,386 | F37: 6,386 | G37: $15.15 | H37: $96,747.90 | I37: $0.00 | J37: $96,747.90
A38: 28 | B38: Curb (Type D) | C38: Lin. Ft. | D38: 167 | F38: 167 | G38: $11.00 | H38: $1,837.00 | I38: $0.00 | J38: $1,837.00
A39: 29 | B39: Concrete Median Nose | C39: Each | D39: 12 | F39: 12 | G39: $550.00 | H39: $6,600.00 | I39: $0.00 | J39: $6,600.00
A40: 30 | B40: Sidewalk Construction (4") | C40: Sq. Ft. | D40: 35,025 | F40: 35,025 | G40: $3.15 | H40: $110,328.75 | I40: $0.00 | J40: $110,328.75
A41: 31 | B41: Sidewalk Ramp with Detectable Warning Surface | C41: Sq. Ft. | D41: 3,790 | F41: 3,790 | G41: $7.70 | H41: $29,183.00 | I41: $0.00 | J41: $29,183.00
A42: 32 | B42: Detectable Warning Surface | C42: Sq. Ft. | D42: 565 | F42: 565 | G42: $19.75 | H42: $11,158.75 | I42: $0.00 | J42: $11,158.75
A43: 33 | B43: Concrete Paver Stones | C43: Sq. Ft. | D43: 5,521 | F43: 5,521 | G43: $10.50 | H43: $57,970.50 | I43: $0.00 | J43: $57,970.50
A44: 34 | B44: Concrete Pavement (6" Entrance) | C44: Sq. Yd. | D44: 109 | F44: 109 | G44: $49.75 | H44: $5,422.75 | I44: $0.00 | J44: $5,422.75
A46: 35 | B46: KCMMB 4K Concrete (ISRW) | C46: Cu. Yd. | D46: 40.2 | F46: 40 | G46: $890.00 | H46: $35,778.00 | I46: $0.00 | J46: $35,778.00
A47: 36 | B47: KCMMB 4K Concrete (Steps) | C47: Cu. Yd. | D47: 0.5 | F47: 1 | G47: $1,500.00 | H47: $750.00 | I47: $0.00 | J47: $750.00
A48: 37 | B48: Handrail (Metal) (42") | C48: Lin. Ft. | D48: 5.3 | F48: 5 | G48: $155.00 | H48: $821.50 | I48: $0.00 | J48: $821.50
A50: 38 | B50: Manhole (Sanitary) (48"to 60" Dia.) | C50: Each | D50: 1 | E50: 2 | F50: 3 | G50: $3,035.00 | H50: $3,035.00 | I50: $6,070.00 | J50: $9,105.00
A51: 39 | B51: Sanitary Sewer Encasement | C51: Lin. Ft. | E51: 77.0 | F51: 77 | G51: $115.00 | H51: $0.00 | I51: $8,855.00 | J51: $8,855.00
A52: 40 | B52: Adjustment of Manholes | C52: Each | D52: 8 | E52: 3 | F52: 11 | G52: $850.00 | H52: $6,800.00 | I52: $2,550.00 | J52: $9,350.00
A54: 41 | B54: Modification of Structure (Curb Inlet to Junction Box) | C54: Each | D54: 15 | F54: 15 | G54: $1,250.00 | H54: $18,750.00 | I54: $0.00 | J54: $18,750.00
A55: 42 | B55: Adjustment of Curb Inlet | C55: Each | D55: 1 | F55: 1 | G55: $1,765.00 | H55: $1,765.00 | I55: $0.00 | J55: $1,765.00
A56: 43 | B56: Adjustment of Junction Box | C56: Each | D56: 4 | F56: 4 | G56: $1,765.00 | H56: $7,060.00 | I56: $0.00 | J56: $7,060.00
A57: 44 | B57: Inlet (5' x 3') (Curb) | C57: Each | D57: 5 | F57: 5 | G57: $2,805.00 | H57: $14,025.00 | I57: $0.00 | J57: $14,025.00
A58: 45 | B58: Inlet (6' x 3') (Curb) | C58: Each | D58: 1 | F58: 1 | G58: $3,200.00 | H58: $3,200.00 | I58: $0.00 | J58: $3,200.00
A59: 46 | B59: Inlet (6' x 4') (Curb) | C59: Each | D59: 13 | F59: 13 | G59: $2,935.00 | H59: $38,155.00 | I59: $0.00 | J59: $38,155.00
A60: 47 | B60: Inlet (6' x 5') (Curb) | C60: Each | D60: 1 | F60: 1 | G60: $3,375.00 | H60: $3,375.00 | I60: $0.00 | J60: $3,375.00
A61: 48 | B61: Inlet (8' x 4') (Curb) | C61: Each | D61: 3 | F61: 3 | G61: $3,400.00 | H61: $10,200.00 | I61: $0.00 | J61: $10,200.00
A62: 49 | B62: Inlet (6' x 3') (Curb) (with Flume) | C62: Each | D62: 2 | F62: 2 | G62: $4,100.00 | H62: $8,200.00 | I62: $0.00 | J62: $8,200.00
A63: 50 | B63: Inlet (6' x 4') (Curb) (with Flume) | C63: Each | D63: 1 | F63: 1 | G63: $3,785.00 | H63: $3,785.00 | I63: $0.00 | J63: $3,785.00
A64: 51 | B64: Inlet (8' x 3') (Curb) (with Flume) | C64: Each | D64: 1 | F64: 1 | G64: $3,830.00 | H64: $3,830.00 | I64: $0.00 | J64: $3,830.00
A65: 52 | B65: Inlet (10' x 3') (Curb) (with Flume) | C65: Each | D65: 1 | F65: 1 | G65: $3,855.00 | H65: $3,855.00 | I65: $0.00 | J65: $3,855.00
A66: 53 | B66: Junction Box (4' x 4') | C66: Each | D66: 2 | F66: 2 | G66: $2,805.00 | H66: $5,610.00 | I66: $0.00 | J66: $5,610.00
A67: 54 | B67: Junction Box (8' x 4') | C67: Each | D67: 1 | F67: 1 | G67: $3,165.00 | H67: $3,165.00 | I67: $0.00 | J67: $3,165.00
A68: 55 | B68: 15" Storm Sewer (RCP Class III) | C68: Lin. Ft. | D68: 238.26 | E68: 204.49 | F68: 442.75 | G68: $63.30 | H68: $15,081.86 | I68: $12,944.22 | J68: $28,026.08
A69: 56 | B69: 21" Storm Sewer (RCP Class III) | C69: Lin. Ft. | D69: 75.22 | F69: 75.22 | G69: $127.00 | H69: $9,552.94 | I69: $0.00 | J69: $9,552.94
A70: 57 | B70: 30" Storm Sewer (RCP Class III) | C70: Lin. Ft. | D70: 22.12 | F70: 22.12 | G70: $141.00 | H70: $3,118.92 | I70: $0.00 | J70: $3,118.92
A71: 58 | B71: 48" Storm Sewer (RCP Class III) | C71: Lin. Ft. | D71: 44.23 | F71: =SUM(D71:E71) -> 44.23 | G71: $205.00 | H71: $9,067.15 | I71: $0.00 | J71: =H71+I71 -> $9,067.15
A72: 59 | B72: Concrete Pipe Collar | C72: Each | D72: 6 | F72: 6 | G72: $525.00 | H72: $3,150.00 | I72: $0.00 | J72: $3,150.00
A73: 60 | B73: Pipe Underdrain (6")(Type H or Type L) | C73: Lin. Ft. | D73: 10,486 | F73: 10,486 | G73: $12.50 | H73: $131,075.00 | I73: $0.00 | J73: $131,075.00
A74: 61 | B74: Outlet Pipe (6")(Type K or Type E) | C74: Lin. Ft. | D74: 1,649 | F74: 1,649 | G74: $14.50 | H74: $23,910.50 | I74: $0.00 | J74: $23,910.50
A76: 62 | B76: Lawn Sprinkler System (Tract 27) | C76: Lump Sum | E76: 1 | F76: 1 | G76: $1,875.00 | H76: =D76*G76 -> $0.00 | I76: =E76*G76 -> $1,875.00 | J76: $1,875.00
A77: 63 | B77: Lawn Sprinkler System (Trible) | C77: Lump Sum | E77: 1 | F77: 1 | G77: $3,450.00 | H77: $0.00 | I77: $3,450.00 | J77: $3,450.00
A78: 64 | B78: Lawn Sprinkler System (Montrachet) | C78: Lump Sum | E78: 1 | F78: 1 | G78: $11,500.00 | H78: $0.00 | I78: $11,500.00 | J78: $11,500.00
A79: 65 | B79: Lawn Sprinkler System (Median) | C79: Lump Sum | D79: 1 | F79: 1 | G79: $67,000.00 | H79: $67,000.00 | I79: $0.00 | J79: $67,000.00
A81: 66 | B81: Fence (Temporary Chain Link)(6') | C81: Lin. Ft. | D81: 1,738 | F81: 1,738 | G81: $6.50 | H81: $11,297.00 | I81: $0.00 | J81: $11,297.00
A82: 67 | B82: Fence (Temporary Construction) | C82: Lin. Ft. | D82: 1,000 | F82: 1,000 | G82: $2.00 | H82: $2,000.00 | I82: $0.00 | J82: $2,000.00
A83: 68 | B83: Fence (Permanent Wood Privacy) (Tract 5) | C83: Lin. Ft. | E83: 82 | F83: 82 | G83: $20.65 | H83: $0.00 | I83: $1,693.30 | J83: $1,693.30
A84: 69 | B84: Fence (Permanent Wood Privacy) (Tract 6) | C84: Lin. Ft. | E84: 86 | F84: 86 | G84: $20.65 | H84: $0.00 | I84: $1,775.90 | J84: $1,775.90
A85: 70 | B85: Fence (Permanent Wood Privacy) (Tract 7) | C85: Lin. Ft. | E85: 71 | F85: 71 | G85: $20.65 | H85: $0.00 | I85: $1,466.15 | J85: $1,466.15
A86: 71 | B86: Fence (Permanent Wood Privacy) (Tract 8) | C86: Lin. Ft. | E86: 74 | F86: 74 | G86: $20.65 | H86: $0.00 | I86: $1,528.10 | J86: $1,528.10
A87: 72 | B87: Fence (Permanent Wood Privacy) (Tract 12) | C87: Lin. Ft. | E87: 72 | F87: 72 | G87: $20.65 | H87: $0.00 | I87: $1,486.80 | J87: $1,486.80
A88: 73 | B88: Fence (Permanent Wood Privacy) (Tract 13) | C88: Lin. Ft. | E88: 73 | F88: 73 | G88: $20.65 | H88: $0.00 | I88: $1,507.45 | J88: $1,507.45
A89: 74 | B89: Fence (Permanent Wood Privacy) (Tract 14) | C89: Lin. Ft. | E89: 72 | F89: 72 | G89: $20.65 | H89: $0.00 | I89: $1,486.80 | J89: $1,486.80
A90: 75 | B90: Fence (Permanent Wood Privacy) (Tract 15) | C90: Lin. Ft. | E90: 74 | F90: 74 | G90: $20.65 | H90: $0.00 | I90: $1,528.10 | J90: $1,528.10
A91: 76 | B91: Fence (Permanent Wood Privacy) (Tract 16) | C91: Lin. Ft. | E91: 112 | F91: 112 | G91: $20.65 | H91: $0.00 | I91: $2,312.80 | J91: $2,312.80
A92: 77 | B92: Fence (Permanent Wood Privacy) (Tract 20) | C92: Lin. Ft. | E92: 45 | F92: 45 | G92: $20.65 | H92: $0.00 | I92: $929.25 | J92: $929.25
A93: 78 | B93: Fence (Permanent Wood Privacy) (Tract 21) | C93: Lin. Ft. | E93: 157 | F93: 157 | G93: $20.65 | H93: $0.00 | I93: $3,242.05 | J93: $3,242.05
A94: 79 | B94: Fence (Permanent Wood Privacy) (Tract 22) | C94: Lin. Ft. | E94: 110 | F94: 110 | G94: $20.65 | H94: $0.00 | I94: $2,271.50 | J94: $2,271.50
A95: 80 | B95: Fence (Permanent Wood Privacy) (Tract 23) | C95: Lin. Ft. | E95: 81 | F95: 81 | G95: $20.65 | H95: $0.00 | I95: $1,672.65 | J95: $1,672.65
A96: 81 | B96: Fence (Permanent Wood Privacy) (Tract 24) | C96: Lin. Ft. | E96: 75 | F96: 75 | G96: $20.65 | H96: $0.00 | I96: $1,548.75 | J96: $1,548.75
A97: 82 | B97: Fence (Permanent Wood Privacy) (Tract 25) | C97: Lin. Ft. | E97: 76 | F97: 76 | G97: $20.65 | H97: $0.00 | I97: $1,569.40 | J97: $1,569.40
A98: 83 | B98: Fence (Permanent Wood Privacy) (Tract 26) | C98: Lin. Ft. | E98: 85 | F98: 85 | G98: $20.65 | H98: $0.00 | I98: $1,755.25 | J98: $1,755.25
A99: 84 | B99: Fence (Permanent Wood Privacy) (Tract 52) | C99: Lin. Ft. | E99: 73 | F99: 73 | G99: $20.65 | H99: $0.00 | I99: $1,507.45 | J99: $1,507.45
A100: 85 | B100: Fence (Permanent Wood Privacy) (Tract 53) | C100: Lin. Ft. | E100: 157 | F100: 157 | G100: $20.65 | H100: $0.00 | I100: $3,242.05 | J100: $3,242.05
A101: 86 | B101: Fence (Permanent Wood Privacy) (Tract 54) | C101: Lin. Ft. | E101: 71 | F101: 71 | G101: $20.65 | H101: $0.00 | I101: $1,466.15 | J101: $1,466.15
A102: 87 | B102: Fence (Permanent Wood Privacy) (Tract 55) | C102: Lin. Ft. | E102: 75 | F102: 75 | G102: $20.65 | H102: $0.00 | I102: $1,548.75 | J102: $1,548.75
A103: 88 | B103: Fence (Permanent Wood Privacy) (Tract 56) | C103: Lin. Ft. | E103: 105 | F103: 105 | G103: $20.65 | H103: $0.00 | I103: $2,168.25 | J103: $2,168.25
A104: 89 | B104: Fence (Permanent Wood Privacy) (Tract 66) | C104: Lin. Ft. | E104: 52 | F104: 52 | G104: $20.65 | H104: $0.00 | I104: $1,073.80 | J104: $1,073.80
A106: 90 | B106: Monument Construction (Aspen Hills) | C106: Each | E106: 1 | F106: 1 | G106: $1,175.00 | H106: $0.00 | I106: $1,175.00 | J106: $1,175.00
A107: 91 | B107: Monument Construction (Oak Park) | C107: Each | E107: 1 | F107: 1 | G107: $3,750.00 | H107: $0.00 | I107: $3,750.00 | J107: $3,750.00
A109: 92 | B109: Landscaping (Quivira Median) | C109: Lump Sum | D109: 1 | F109: 1 | G109: $16,650.00 | H109: $16,650.00 | I109: $0.00 | J109: $16,650.00
A110: 93 | B110: Fescue Sod | C110: Sq. Yd. | D110: 15,078 | F110: 15,078 | G110: $3.10 | H110: $46,741.80 | I110: $0.00 | J110: $46,741.80
A111: 94 | B111: Bluegrass Sod | C111: Sq. Yd. | D111: 193 | F111: 193 | G111: $3.10 | H111: $598.30 | I111: $0.00 | J111: $598.30
A112: 95 | B112: Hydraulic Mulching | C112: Lb | D112: 14,080 | F112: 14,080 | G112: $0.75 | H112: $10,560.00 | I112: $0.00 | J112: $10,560.00
A113: 96 | B113: Temporary Seeding | C113: Acre | D113: 3.2 | F113: 3.2 | G113: $1,000.00 | H113: $3,200.00 | I113: $0.00 | J113: $3,200.00
A114: 97 | B114: Silt Fence | C114: Lin. Ft. | D114: 800 | F114: 800 | G114: $1.75 | H114: $1,400.00 | I114: $0.00 | J114: $1,400.00
A115: 98 | B115: Sediment Removal | C115: Cu. Yd. | D115: 100 | F115: 100 | G115: $25.00 | H115: $2,500.00 | I115: $0.00 | J115: $2,500.00
A116: 99 | B116: Rock Barrier (6") | C116: Each | D116: 12 | F116: 12 | G116: $250.00 | H116: $3,000.00 | I116: $0.00 | J116: $3,000.00
A117: 100 | B117: Straw Wattles | C117: Lin. Ft. | D117: 1,250 | F117: 1,250 | G117: $2.55 | H117: $3,187.50 | I117: $0.00 | J117: $3,187.50
A118: 101 | B118: Inlet Protection | C118: Each | D118: 100 | F118: 100 | G118: $92.00 | H118: $9,200.00 | I118: $0.00 | J118: $9,200.00
A120: 102 | B120: Permanent Traffic Control Signs | C120: Sq. Ft. | D120: 359 | F120: 359 | G120: $17.50 | H120: $6,282.50 | I120: $0.00 | J120: $6,282.50
A121: 103 | B121: 1-3/4" x 1-3/4" Sign Posts | C121: Lin. Ft. | D121: 357 | F121: 357 | G121: $6.15 | H121: $2,195.55 | I121: $0.00 | J121: $2,195.55
A122: 104 | B122: 2" x 2" Sign Post Anchors | C122: Lin. Ft. | D122: 111 | F122: 111 | G122: $7.20 | H122: $799.20 | I122: $0.00 | J122: $799.20
A123: 105 | B123: 2-1/4" x 2-1/4" Anchor Sleeves | C123: Lin. Ft. | D123: 56 | F123: 56 | G123: $8.20 | H123: $459.20 | I123: $0.00 | J123: $459.20
A124: 106 | B124: 2-1/2" x 2-1/2" Sign Posts | C124: Lin. Ft. | D124: 32 | F124: 32 | G124: $10.25 | H124: $328.00 | I124: $0.00 | J124: $328.00
A125: 107 | B125: 3" x 3" Sign Post Anchors | C125: Lin. Ft. | D125: 9 | F125: 9 | G125: $15.40 | H125: $138.60 | I125: $0.00 | J125: $138.60
A127: 108 | B127: Interim Pavement Markings | C127: Lump Sum | D127: 1 | F127: 1 | G127: $2,500.00 | H127: $2,500.00 | I127: $0.00 | J127: $2,500.00
A128: 109 | B128: 4" White Thermoplastic | C128: Lin. Ft. | D128: 5,925 | F128: 5,925 | G128: $0.62 | H128: $3,673.50 | I128: $0.00 | J128: $3,673.50
A129: 110 | B129: 4" Yellow Thermoplastic | C129: Lin. Ft. | D129: 154 | F129: 154 | G129: $1.55 | H129: $238.70 | I129: $0.00 | J129: $238.70
A130: 111 | B130: 6" White Thermoplastic | C130: Lin. Ft. | D130: 1,488 | F130: 1,488 | G130: $0.80 | H130: $1,190.40 | I130: $0.00 | J130: $1,190.40
A131: 112 | B131: 8" While Thermoplastic | C131: Lin. Ft. | D131: 231 | F131: 231 | G131: $0.87 | H131: $200.97 | I131: $0.00 | J131: $200.97
A132: 113 | B132: 12" White Pre-formed Thermoplastic | C132: Lin. Ft. | D132: 124 | F132: 124 | G132: $2.70 | H132: $334.80 | I132: $0.00 | J132: $334.80
A133: 114 | B133: 24" White Pre-formed Thermoplastic | C133: Lin. Ft. | D133: 323 | F133: 323 | G133: $11.30 | H133: $3,649.90 | I133: $0.00 | J133: $3,649.90
A134: 115 | B134: White Arrows Pre-formed Thermoplastic | C134: Each | D134: 26 | F134: 26 | G134: $135.00 | H134: $3,510.00 | I134: $0.00 | J134: $3,510.00
A135: 116 | B135: White "Only" Markings Pre-formed Thermoplastic | C135: Each | D135: 1 | F135: =SUM(D135:E135) -> 1 | G135: $205.00 | H135: $205.00 | I135: $0.00 | J135: =H135+I135 -> $205.00
A136: 117 | B136: 8" White Cold Plastic | C136: Lin. Ft. | D136: 234 | F136: 234 | G136: $6.15 | H136: $1,439.10 | I136: $0.00 | J136: $1,439.10
A137: 118 | B137: White Arrows Cold Plastic | C137: Each | D137: 2 | F137: 2 | G137: $405.00 | H137: $810.00 | I137: $0.00 | J137: $810.00
A138: 119 | B138: White "Only" Markings Cold Plastic | C138: Each | D138: 1 | F138: 1 | G138: $595.00 | H138: $595.00 | I138: $0.00 | J138: $595.00
A140: 120 | B140: Street Lighting Installation | C140: Lump Sum | D140: 1 | F140: 1 | G140: $166,000.00 | H140: =D140*G140 -> $166,000.00 | I140: =E140*G140 -> $0.00 | J140: $166,000.00
A141: 121 | B141: Fiber Optic Communication System | C141: Lump Sum | D141: 1 | F141: 1 | G141: $51,000.00 | H141: $51,000.00 | I141: $0.00 | J141: $51,000.00
A143: 122 | B143: Traffic Signal Installation (99th) | C143: Lump Sum | D143: 1 | F143: 1 | G143: $189,000.00 | H143: $189,000.00 | I143: $0.00 | J143: $189,000.00
A144: 123 | B144: Traffic Signal Installation (103rd) | C144: Lump Sum | D144: 1 | F144: 1 | G144: $255,000.00 | H144: $255,000.00 | I144: $0.00 | J144: $255,000.00
A146: 124 | B146: Land Corner Monument Box | C146: Each | D146: 3 | F146: 3 | G146: $1,200.00 | H146: $3,600.00 | I146: $0.00 | J146: $3,600.00
A147: 125 | B147: Traffic Control | C147: Lump Sum | D147: 1 | F147: 1 | G147: $76,500.00 | H147: $76,500.00 | I147: $0.00 | J147: $76,500.00
A148: 126 | B148: TWorks Sign Assembly | C148: Each | D148: 2 | F148: 2 | G148: $615.00 | H148: $1,230.00 | I148: $0.00 | J148: $1,230.00
G150: Total | H150: =SUM(H6:H148) -> $4,698,521.54 | I150: =SUM(I6:I148) -> $298,949.92 | J150: =SUM(J6:J148) -> $4,997,471.46
G151: Work Type Summary
G152: Common Items | H152: =SUM(H6:H10)+H148 -> $136,230.00 | I152: =SUM(I6:I10)+I148 -> $208,000.00 | J152: =SUM(J6:J10)+J148 -> $344,230.00
G153: Roadway | H153: =SUM(H12:H16)+SUM(H34:H43)+SUM(H46:H140)+SUM(H146:H147) -> $1,762,730.54 | I153: =SUM(I12:I16)+SUM(I34:I43)+SUM(I46:I140)+SUM(I146:I147) -> $90,949.92 | J153: =SUM(J12:J16)+SUM(J34:J43)+SUM(J46:J140)+SUM(J146:J147) -> $1,853,680.46
G154: Surfacing | H154: =SUM(H18:H32)+H44 -> $2,304,561.00 | I154: =SUM(I18:I32)+I44 -> $0.00 | J154: =SUM(J18:J32)+J44 -> $2,304,561.00
G155: Bridges
G156: Traffic Signals | H156: =SUM(H141:H144) -> $495,000.00 | I156: =SUM(I141:I144) -> $0.00 | J156: =SUM(J141:J144) -> $495,000.00
